bitfinex-derivatives/quotes_BNBF0:USTF0_20250521
["timestamp","ask_amount","ask_price","bid_price","bid_amount"]
[1747851024131,0.97581356,668.01,666.7,0.37587612]
[1747851024429,1.008526,668.0,666.71,0.26063511]
[1747851024631,1.008526,667.99,666.71,0.26063511]
[1747851025930,0.97581356,667.98,666.71,0.26063511]
[1747851026125,1.008526,667.97,666.71,0.26063511]
[1747851026324,1.008526,667.96,666.71,0.26063511]
[1747851026527,1.008526,667.95,666.71,0.26063511]
[1747851026727,0.97581356,667.98,666.71,0.26063511]
[1747851027732,0.97581356,667.97,666.71,0.26063511]
[1747851028732,0.97581356,668.3,666.71,0.26063511]
[1747851028932,1.00835646,668.29,666.71,0.26063511]
[1747851029233,1.00835646,668.28,666.71,0.26063511]
[1747851029433,1.00835646,668.27,666.71,0.26063511]
[1747851029627,1.00835646,668.26,666.71,0.26063511]
[1747851029828,1.00835646,668.25,666.71,0.26063511]
[1747851030028,1.00835646,668.24,666.49,0.37587612]
[1747851030330,1.00835646,668.23,666.49,0.37587612]
[1747851030527,1.00835646,668.22,666.49,0.37587612]
[1747851030727,1.00835646,668.21,666.9,0.37587612]
[1747851031836,1.00906618,668.2,666.9,0.37587612]
[1747851032037,1.00906618,668.19,666.9,0.37587612]
[1747851032331,1.00906618,668.18,666.9,0.37587612]
[1747851032535,1.00906618,668.17,666.9,0.37587612]
[1747851032733,1.00906618,668.16,666.9,0.37587612]
[1747851032932,1.00906618,668.15,666.9,0.37587612]
[1747851033133,1.00906618,668.14,666.9,0.37587612]
[1747851033338,1.00906618,668.13,666.9,0.37587612]
[1747851033537,1.00906618,668.12,666.9,0.37587612]
[1747851033734,1.00906618,668.11,666.9,0.37587612]
[1747851033936,1.00906618,668.1,666.9,0.37587612]
[1747851034130,0.97581356,668.19,666.9,0.37587612]
[1747851034131,1.00906618,668.09,666.9,0.37587612]
[1747851034332,1.00906618,668.08,666.9,0.37587612]
[1747851034535,1.00918584,668.07,666.93,0.37587612]
[1747851034736,0.97581356,668.1,666.93,0.37587612]
[1747851034939,1.00915301,668.09,666.93,0.37587612]
[1747851035137,1.00915301,668.08,666.93,0.37587612]
[1747851035334,1.00915301,668.07,666.93,0.37587612]
[1747851035539,1.00915301,668.06,666.93,0.37587612]
[1747851035740,1.00915301,668.05,666.93,0.37587612]
[1747851036035,1.98496657,668.04,666.93,0.37587612]
[1747851036241,1.00921319,668.03,666.93,0.37587612]
[1747851036440,1.00921319,668.02,666.93,0.37587612]
[1747851036735,1.00921319,668.01,666.93,0.37587612]
[1747851036940,0.97581356,668.04,666.93,0.37587612]
[1747851037141,1.0091743,668.03,666.93,0.37587612]
[1747851037341,1.0091743,668.02,666.93,0.37587612]
[1747851037535,1.0091743,668.01,666.93,0.37587612]
[1747851037740,0.97581356,668.04,666.93,0.37587612]
[1747851037935,1.00916771,668.03,666.93,0.37587612]
[1747851038235,1.09829765,668.28,666.87,0.2606683]
[1747851038440,1.00914577,668.27,666.87,0.2606683]
[1747851038639,1.00914577,668.26,666.87,0.2606683]
[1747851038940,1.98495933,668.25,666.78,0.37587612]
[1747851039137,1.00914577,668.24,666.78,0.37587612]
[1747851039336,0.97581356,668.25,666.78,0.37587612]
[1747851039337,1.00914577,668.23,666.87,0.26056388]
[1747851039536,1.00914577,668.22,666.87,0.26056388]
[1747851039737,1.00914577,668.21,666.78,0.37587612]
[1747851039940,1.0091486,668.2,666.78,0.37587612]
[1747851040140,1.0091486,668.19,666.97,0.37587612]
[1747851040342,1.0091486,668.18,666.97,0.37587612]
[1747851040644,1.0091486,668.17,666.97,0.37587612]
[1747851040844,1.0091486,668.16,666.97,0.37587612]
[1747851041044,1.0091486,668.15,666.97,0.37587612]
[1747851041240,1.0091486,668.14,666.97,0.37587612]
[1747851041646,1.00927535,668.13,666.97,0.37587612]
[1747851041845,1.00927535,668.12,666.97,0.37587612]
[1747851042147,1.00927535,668.11,666.97,0.37587612]
[1747851042344,1.00927535,668.1,666.97,0.37587612]
[1747851042546,1.00927535,668.09,667.02,0.37587612]
[1747851042741,1.00927535,668.08,667.02,0.37587612]
[1747851042948,0.97581356,668.11,667.02,0.37587612]
[1747851043148,1.00937076,668.1,667.02,0.37587612]
[1747851043346,1.00937076,668.09,667.02,0.37587612]
[1747851043542,1.0094889,668.08,667.02,0.37587612]
[1747851043848,0.97581356,668.09,667.02,0.37587612]
[1747851044048,1.00948923,668.08,667.02,0.37587612]
[1747851044348,1.00948893,668.07,667.02,0.37587612]
[1747851044548,1.00948893,668.06,667.02,0.37587612]
[1747851044748,1.00948893,668.05,667.02,0.37587612]
[1747851044948,1.00948893,668.04,667.02,0.37587612]
[1747851045148,1.00948893,668.03,666.96,0.37587612]
[1747851045344,1.00981793,668.02,666.96,0.37587612]
[1747851045545,1.00981793,668.01,666.96,0.37587612]
[1747851045847,0.97581356,668.05,666.96,0.37587612]
[1747851046047,1.0110751,668.04,666.96,0.37587612]
[1747851046248,1.0110751,668.03,666.96,0.37587612]
[1747851046448,1.0110751,668.02,666.96,0.37587612]
[1747851046644,1.0110751,668.01,666.96,0.37587612]
[1747851046849,1.0110751,668.0,666.96,0.37587612]
[1747851047149,1.0110751,667.99,666.96,0.37587612]
[1747851047346,0.97581356,668.03,666.96,0.37587612]
[1747851047347,1.0110751,667.98,666.96,0.37587612]
[1747851047547,1.0110751,667.97,666.96,0.37587612]
[1747851047849,1.0110751,667.96,666.96,0.37587612]
[1747851048045,1.0110751,667.95,666.96,0.37587612]
[1747851048248,1.0110751,667.94,666.88,0.37587612]
[1747851048450,1.0110751,667.93,666.88,0.37587612]
[1747851048649,1.0110751,667.92,666.94,0.26068392]
[1747851048852,1.0110751,667.91,666.94,0.26068392]
[1747851049053,1.98688866,667.9,666.94,0.26068392]
[1747851049354,1.0110751,667.89,666.94,0.26068392]
[1747851050358,0.97581356,667.88,666.94,0.26068392]
[1747851050650,1.0110751,667.87,666.94,0.26068392]
[1747851050851,0.97581356,667.88,666.94,0.26068392]
[1747851051055,1.0114116,667.87,666.94,0.26068392]
[1747851051256,1.0114116,667.86,666.89,0.37587612]
[1747851051456,0.97581356,667.88,666.94,0.26064487]
[1747851051656,1.01138124,667.87,666.94,0.26064487]
[1747851051856,1.9871948,667.86,666.94,0.26064487]
[1747851052156,1.0113884,667.85,666.94,0.26064487]
[1747851052358,0.97581356,667.86,666.94,0.26064487]
[1747851052558,1.01137338,667.85,666.94,0.26064487]
[1747851052859,1.01137338,667.84,666.94,0.26064487]
[1747851053052,1.01137654,667.83,666.94,0.26064487]
[1747851053254,0.97581356,667.84,666.94,0.26064487]
[1747851053453,1.01134092,667.83,666.94,0.26064487]
[1747851053659,0.97581356,667.84,666.94,0.26064487]
[1747851053864,1.01134749,667.83,666.94,0.26064487]
[1747851054061,1.01135099,667.82,666.84,0.37587612]
[1747851054260,1.09829765,668.08,666.84,0.37587612]
[1747851054458,1.44389448,668.07,666.94,0.26066244]
[1747851054760,1.44389448,668.06,666.84,0.37587612]
[1747851054961,1.01141777,668.05,666.84,0.37587612]
[1747851055161,1.01141777,668.04,666.84,0.37587612]
[1747851055362,1.01141777,668.03,666.85,0.26069173]
[1747851055566,2.10971542,668.02,666.85,0.26069173]
[1747851055857,1.01141777,668.01,666.85,0.26069173]
[1747851056062,1.01141777,668.0,666.85,0.26069173]
[1747851056261,1.01141777,667.99,666.85,0.26069173]
[1747851056458,1.99394983,667.98,666.85,0.26069173]
[1747851056657,1.01141777,667.97,666.85,0.26069173]
[1747851056864,1.01141777,667.96,666.85,0.26069173]
[1747851057056,1.01141777,667.95,666.85,0.26069173]
[1747851057256,1.01141777,667.94,666.77,0.37587612]
[1747851057556,1.01141777,667.93,666.77,0.37587612]
[1747851057760,1.01141777,667.92,666.77,0.37587612]
[1747851057955,1.01141777,667.91,666.62,0.37587612]
[1747851058156,1.01141777,667.9,666.62,0.37587612]
[1747851058362,1.01141777,667.89,666.63,0.26072005]
[1747851058562,1.01141777,667.88,666.63,0.26072005]
[1747851058868,1.01141777,667.87,666.63,0.26072005]
[1747851059062,1.01141777,667.86,666.63,0.26072005]
[1747851059259,1.01141777,667.85,666.63,0.26072005]
[1747851059460,1.01141777,667.84,666.63,0.26072005]
[1747851059660,1.01141777,667.83,666.63,0.26072005]
[1747851059856,1.01141777,667.82,666.63,0.26072005]
[1747851061163,1.01188774,667.81,666.63,0.26072005]
[1747851061364,1.01188774,667.8,666.63,0.26072005]
[1747851061565,1.01188774,667.79,666.63,0.26072005]
[1747851061862,1.01188774,667.78,666.63,0.26072005]
[1747851062065,0.98253206,667.81,666.63,0.26072005]
[1747851062066,1.01188774,667.77,666.63,0.26072005]
[1747851062261,1.01188774,667.76,666.63,0.26072005]
[1747851062461,1.01188774,667.75,666.63,0.26072005]
[1747851062757,1.01188774,667.74,666.63,0.26072005]
[1747851063063,1.9944198,667.73,666.63,0.26072005]
[1747851063264,1.01188774,667.72,666.63,0.26072005]
[1747851063458,1.01198364,667.71,666.63,0.26072005]
[1747851063663,1.01198364,667.7,666.63,0.26072005]
[1747851063864,1.01198364,667.69,666.63,0.26072005]
[1747851064066,1.01198364,667.68,666.63,0.26072005]
[1747851064263,1.01198364,667.67,666.63,0.26072005]
[1747851064468,1.01198364,667.66,666.63,0.26072005]
[1747851064660,1.01198364,667.65,666.63,0.26072005]
[1747851064866,1.01198364,667.64,666.63,0.26072005]
[1747851065065,1.01198364,667.63,666.63,0.26072005]
[1747851065262,1.01198364,667.62,666.63,0.26072005]
[1747851065465,1.01198364,667.61,666.63,0.26072005]
[1747851065665,1.01198364,667.6,666.63,0.26072005]
[1747851065862,1.01198364,667.59,666.63,0.26072005]
[1747851066063,0.98253206,667.58,666.63,0.26072005]
[1747851066265,1.01181319,667.57,666.63,0.26072005]
[1747851066467,1.01181319,667.56,666.63,0.26072005]
[1747851066668,1.01181319,667.55,666.63,0.26072005]
[1747851066866,0.98253206,667.58,666.63,0.26072005]
[1747851067066,1.01226681,667.57,666.63,0.26072005]
[1747851067267,1.01194665,667.56,666.63,0.26072005]
[1747851067469,1.01194665,667.55,666.63,0.26072005]
[1747851067670,0.98253206,667.56,666.63,0.26072005]
[1747851067870,1.01213688,667.55,666.63,0.26072005]
[1747851068069,1.01213688,667.54,666.63,0.26072005]
[1747851068269,0.98253206,667.56,666.63,0.26072005]
[1747851068467,1.01200771,667.55,666.63,0.26072005]
[1747851068871,0.98253206,667.54,666.63,0.26072005]
[1747851069065,1.01200771,667.53,666.34,0.37587612]
[1747851069372,1.01200771,667.53,666.63,0.26082166]
[1747851069673,1.01200771,667.53,666.34,0.37587612]
[1747851070177,1.01192853,667.52,666.34,0.37587612]
[1747851070481,1.01192853,667.51,666.35,0.26088325]
[1747851070678,1.01192853,667.5,666.35,0.26088325]
[1747851070876,1.01192853,667.49,666.35,0.26088325]
[1747851071078,1.01192853,667.48,666.35,0.26088325]
[1747851071276,1.01192853,667.47,666.35,0.26088325]
[1747851071478,1.01192853,667.46,666.35,0.26088325]
[1747851071678,1.01192853,667.45,666.35,0.26088325]
[1747851071877,1.99446059,667.44,666.35,0.26088325]
[1747851072077,1.01192853,667.43,666.28,0.37587612]
[1747851072279,1.01192853,667.42,666.35,0.26085099]
[1747851072478,1.01192853,667.41,666.35,0.26085099]
[1747851072777,1.01192853,667.4,666.35,0.26085099]
[1747851072978,1.01192853,667.39,666.35,0.26085099]
[1747851073175,1.01192853,667.38,666.35,0.26085099]
[1747851073377,1.01192853,667.37,666.35,0.26085099]
[1747851073579,0.98253206,667.44,666.35,0.26085099]
[1747851073580,1.01192853,667.36,666.35,0.26085099]
[1747851073777,1.01192853,667.35,666.35,0.26085099]
[1747851073978,0.98253206,667.37,666.35,0.26085099]
[1747851074278,1.00910046,667.36,666.35,0.26085099]
[1747851074478,1.00910046,667.35,666.35,0.26085099]
[1747851074677,1.00910046,667.34,666.35,0.26085099]
[1747851074884,1.00910046,667.33,666.35,0.26085099]
[1747851075082,1.00910046,667.32,666.35,0.26085099]
[1747851075284,1.00910046,667.31,666.35,0.26085099]
[1747851075584,1.00910046,667.3,666.35,0.26085099]
[1747851075884,1.00910046,667.29,666.35,0.26085099]
[1747851076085,1.00910046,667.28,666.35,0.26085099]
[1747851076284,1.00910046,667.27,666.35,0.26085099]
[1747851076485,1.00910046,667.26,666.35,0.26085099]
[1747851076687,1.00910046,667.25,666.35,0.26085099]
[1747851076887,1.00910046,667.24,666.35,0.26085099]
[1747851077186,1.09829765,667.51,666.35,0.26085099]
[1747851077187,0.98253206,667.25,666.35,0.26085099]
[1747851077386,1.00724876,667.24,666.35,0.26085099]
[1747851077589,1.00722724,667.23,666.35,0.26085099]
[1747851077886,1.00722724,667.22,666.35,0.26085099]
[1747851078187,1.9897593,667.21,666.35,0.26085099]
[1747851078386,0.98253206,667.21,666.35,0.26085099]
[1747851079284,1.00623344,667.2,666.35,0.26085099]
[1747851079488,1.00623344,667.19,666.35,0.26085099]
[1747851079694,1.00623344,667.18,666.35,0.26085099]
[1747851079887,1.00623344,667.17,666.35,0.26085099]
[1747851080090,1.00623344,667.16,666.35,0.26085099]
[1747851080292,1.00623344,667.15,666.35,0.26085099]
[1747851080587,1.00623344,667.14,666.35,0.26085099]
[1747851080787,1.00566108,667.13,666.35,0.26085099]
[1747851080990,1.00566108,667.12,666.35,0.26085099]
[1747851081187,1.00566108,667.11,666.35,0.26085099]
[1747851081487,0.98253206,667.15,666.35,0.26085099]
[1747851081993,0.98253206,667.1,666.35,0.26085099]
[1747851083591,0.98253206,667.4,666.35,0.26085099]
[1747851083790,1.00403881,667.39,666.35,0.26085099]
[1747851083990,1.00403881,667.38,666.35,0.26085099]
[1747851084190,1.00403881,667.37,666.35,0.26085099]
[1747851084392,1.00403881,667.36,666.35,0.26085099]
[1747851084691,1.00403881,667.35,666.35,0.26085099]
[1747851084887,1.00403881,667.34,665.6,0.37587612]
[1747851085093,1.00403881,667.33,665.6,0.37587612]
[1747851085393,1.00403881,667.32,665.61,0.26111424]
[1747851085687,1.00403881,667.31,665.61,0.26111424]
[1747851085893,1.00403881,667.3,665.61,0.26111424]
[1747851086192,1.98657087,667.29,665.61,0.26111424]
[1747851086388,1.00403881,667.28,665.61,0.26111424]
[1747851086589,1.00403881,667.27,665.61,0.26111424]
[1747851086787,1.00403881,667.26,665.61,0.26111424]
[1747851087088,1.00403881,667.25,665.6,0.37587612]
[1747851087290,1.00403881,667.24,665.6,0.37587612]
[1747851087489,1.00403881,667.23,665.6,0.37587612]
[1747851087688,1.00403881,667.22,665.6,0.37587612]
[1747851087893,1.00403881,667.21,665.46,0.37587612]
[1747851088093,1.00403881,667.2,665.46,0.37587612]
[1747851088294,1.00403881,667.19,665.46,0.37587612]
[1747851088494,1.00245976,667.18,665.47,0.26111424]
[1747851088694,0.98253206,667.23,665.47,0.26111424]
[1747851088896,1.00243666,667.22,665.47,0.26111424]
[1747851089096,1.98496872,667.21,665.47,0.26111424]
[1747851089295,1.00243666,667.2,665.47,0.26111424]
[1747851089492,1.00243666,667.19,665.47,0.26111424]
[1747851089691,1.00243666,667.18,665.47,0.26111424]
[1747851089893,1.00236242,667.17,665.47,0.26111424]
[1747851090091,1.00236242,667.16,665.46,0.37587612]
[1747851090294,0.98253206,667.21,665.46,0.37587612]
[1747851090295,1.00236242,667.15,665.46,0.37587612]
[1747851090496,0.98253206,667.21,665.46,0.37587612]
[1747851090689,0.98253206,667.16,665.45,0.37587612]
[1747851090893,1.00220486,667.15,665.45,0.37587612]
[1747851091095,0.98253206,667.16,665.45,0.37587612]
[1747851091395,0.98253206,667.16,665.46,0.26113677]
[1747851092096,0.98253206,667.4,665.46,0.26113677]
[1747851092296,1.00186297,667.39,665.46,0.26113677]
[1747851092490,1.00186297,667.38,665.46,0.26113677]
[1747851092691,1.00186297,667.37,665.46,0.26113677]
[1747851092894,1.00186297,667.36,665.46,0.26113677]
[1747851093093,1.00186297,667.35,665.46,0.26113677]
[1747851093291,1.00186297,667.34,665.45,0.37587612]
[1747851093492,1.00186297,667.33,665.45,0.37587612]
[1747851093696,1.00186297,667.32,665.45,0.37587612]
[1747851093898,1.00186297,667.31,665.56,0.37587612]
[1747851094194,1.00186297,667.3,665.56,0.37587612]
[1747851094395,1.00186297,667.29,665.56,0.37587612]
[1747851094594,1.00186297,667.28,665.56,0.37587612]
[1747851094794,1.00186297,667.27,665.56,0.37587612]
[1747851095097,1.98439503,667.26,665.56,0.37587612]
[1747851095296,1.00186297,667.25,665.56,0.37587612]
[1747851095495,1.00186297,667.24,665.56,0.37587612]
[1747851095697,1.00186297,667.23,665.56,0.37587612]
[1747851095898,1.00186297,667.22,665.56,0.37587612]
[1747851096098,1.00186297,667.21,665.56,0.37587612]
[1747851096397,1.00186297,667.2,665.56,0.37587612]
[1747851096599,1.00186297,667.19,665.53,0.37587612]
[1747851096794,0.98253206,667.2,665.53,0.37587612]
[1747851096795,1.00186297,667.18,665.53,0.37587612]
[1747851096996,0.98253206,667.2,665.53,0.37587612]
[1747851097297,1.00180813,667.19,665.53,0.37587612]
[1747851097498,1.00180813,667.18,665.53,0.37587612]
[1747851097693,0.98253206,667.17,665.53,0.37587612]
[1747851098299,1.00188626,667.16,665.53,0.37587612]
[1747851098497,0.98253206,667.17,665.53,0.37587612]
[1747851098695,1.00185947,667.16,665.53,0.37587612]
[1747851098896,0.98253206,667.17,665.53,0.37587612]
[1747851099098,1.00176938,667.16,665.53,0.37587612]
[1747851099292,1.00176938,667.15,665.45,0.37587612]
[1747851099493,1.00204904,667.14,665.45,0.37587612]
[1747851099700,2.08082971,667.32,665.45,0.37587612]
[1747851099993,1.00204032,667.31,665.45,0.37587612]
[1747851100191,1.00204032,667.3,665.45,0.37587612]
[1747851100399,1.00204032,667.29,665.46,0.26107506]
[1747851100601,1.00204032,667.28,665.46,0.26107506]
[1747851100800,1.98467365,667.27,665.46,0.26107506]
[1747851101099,1.00215482,667.26,665.46,0.26107506]
[1747851101299,1.00215482,667.25,665.46,0.26107506]
[1747851101501,1.00215482,667.24,665.46,0.26107506]
[1747851101800,1.00215482,667.23,665.46,0.26107506]
[1747851102000,1.00215482,667.22,665.46,0.26107506]
[1747851102300,1.00215482,667.21,665.46,0.26107506]
[1747851102501,1.00215482,667.2,665.46,0.26107506]
[1747851102702,1.00215482,667.19,665.46,0.26107506]
[1747851102896,1.00215482,667.18,665.46,0.26107506]
[1747851103096,1.00215482,667.17,665.46,0.26107506]
[1747851103297,1.00215482,667.16,665.46,0.26107506]
[1747851103497,1.98468688,667.15,665.46,0.26107506]
[1747851103699,1.00215482,667.14,665.46,0.26107506]
[1747851105103,1.00215482,667.14,665.32,0.37587612]
[1747851105403,1.00215482,667.14,665.46,0.26105841]
[1747851105609,0.98253206,667.13,665.46,0.26105841]
[1747851105804,1.00215482,667.12,665.32,0.37587612]
[1747851106206,1.00267587,667.11,665.32,0.37587612]
[1747851106404,1.00267587,667.1,665.32,0.37587612]
[1747851106603,1.00267587,667.09,665.32,0.37587612]
[1747851106804,1.00267587,667.08,665.33,0.26111424]
[1747851107004,1.00267587,667.07,665.33,0.26111424]
[1747851107305,0.98253206,667.08,665.33,0.26111424]
[1747851107605,1.00314134,667.07,665.33,0.26111424]
[1747851107807,0.98253206,667.08,665.33,0.26111424]
[1747851108001,1.00314148,667.07,665.33,0.26111424]
[1747851108202,0.98253206,667.08,665.32,0.37587612]
[1747851108407,0.98253206,667.06,665.34,0.37587612]
[1747851109406,0.98253206,667.17,665.34,0.37587612]
[1747851109604,1.00352769,667.16,665.34,0.37587612]
[1747851109800,1.00352769,667.15,665.34,0.37587612]
[1747851110005,1.00352769,667.14,665.34,0.37587612]
[1747851110202,1.00352769,667.13,665.34,0.37587612]
[1747851110408,1.00352769,667.12,665.34,0.37587612]
[1747851110707,1.00352769,667.11,665.34,0.37587612]
[1747851111006,1.00352769,667.1,665.34,0.37587612]
[1747851111207,1.00352769,667.09,665.38,0.37587612]
[1747851111405,1.00352769,667.08,665.38,0.37587612]
[1747851111606,1.00352769,667.07,665.38,0.37587612]
[1747851111802,1.00352769,667.06,665.38,0.37587612]
[1747851112009,0.98253206,667.11,665.38,0.37587612]
[1747851112205,1.00422398,667.1,665.38,0.37587612]
[1747851112407,1.00422398,667.09,665.38,0.37587612]
[1747851112609,1.98675604,667.08,665.38,0.37587612]
[1747851112812,1.00422398,667.07,665.38,0.37587612]
[1747851113410,1.00495887,667.06,665.38,0.37587612]
[1747851113607,1.00495887,667.05,665.38,0.37587612]
[1747851113808,0.98253206,667.08,665.38,0.37587612]
[1747851114006,0.98253206,667.04,665.46,0.37587612]
[1747851115009,0.98253206,667.15,665.46,0.37587612]
[1747851115211,1.00537394,667.14,665.46,0.37587612]
[1747851115510,1.00537394,667.13,665.46,0.37587612]
[1747851115709,1.00537394,667.12,665.46,0.37587612]
[1747851115912,1.00537394,667.11,665.46,0.37587612]
[1747851116108,1.00537394,667.1,665.46,0.37587612]
[1747851116304,1.00537394,667.09,665.46,0.37587612]
[1747851116509,1.00537394,667.08,665.61,0.37587612]
[1747851116704,1.00537394,667.07,665.61,0.37587612]
[1747851116912,1.00537394,667.06,665.61,0.37587612]
[1747851117109,1.00626131,667.05,665.61,0.37587612]
[1747851117309,1.00626131,667.04,665.61,0.37587612]
[1747851117510,1.00673472,667.03,665.61,0.37587612]
[1747851117806,1.98926678,667.02,665.61,0.37587612]
[1747851118110,0.98253206,667.02,665.61,0.37587612]
[1747851118311,1.00677738,667.01,665.61,0.37587612]
[1747851118509,1.00677738,667.0,665.61,0.37587612]
[1747851118708,0.98253206,667.02,665.61,0.37587612]
[1747851119812,2.19399239,667.36,665.47,0.26108485]
[1747851119813,0.98253206,667.1,665.75,0.37587612]
[1747851120013,1.00795057,667.09,665.75,0.37587612]
[1747851120313,1.00795057,667.08,665.75,0.37587612]
[1747851120514,1.00795057,667.07,665.75,0.37587612]
[1747851120813,1.00795057,667.06,665.75,0.37587612]
[1747851121016,1.99048263,667.05,665.75,0.37587612]
[1747851121214,1.00795057,667.04,665.75,0.37587612]
[1747851121413,1.00795057,667.03,665.75,0.37587612]
[1747851121613,1.00795057,667.02,665.75,0.37587612]
[1747851121814,0.98253206,667.05,665.75,0.37587612]
[1747851122015,1.0085657,667.04,665.75,0.37587612]
[1747851122216,1.0085657,667.03,665.75,0.37587612]
[1747851122410,0.98253206,667.05,665.75,0.37587612]
[1747851122610,0.98253206,667.03,665.83,0.37587612]
[1747851123713,0.98253206,667.18,665.83,0.37587612]
[1747851124016,1.0108606,667.17,665.83,0.37587612]
[1747851124217,1.0108606,667.16,665.83,0.37587612]
[1747851124517,0.98253206,667.18,665.83,0.37587612]
[1747851124714,1.01127775,667.17,665.83,0.37587612]
[1747851124915,1.01127775,667.16,665.83,0.37587612]
[1747851125116,0.98253206,667.18,665.83,0.37587612]
[1747851125418,0.98253206,667.16,665.97,0.37587612]
[1747851126717,0.98253206,667.32,665.97,0.37587612]
[1747851126917,1.01194648,667.31,665.97,0.37587612]
[1747851127217,1.01194648,667.3,665.97,0.37587612]
[1747851127413,0.98253206,667.32,665.97,0.37587612]
[1747851127414,1.01194648,667.29,665.97,0.37587612]
[1747851127618,0.98253206,667.32,665.97,0.37587612]
[1747851127913,1.01234018,667.31,665.97,0.37587612]
[1747851128117,1.01234018,667.3,665.97,0.37587612]
[1747851128318,1.01234018,667.29,666.14,0.37587612]
[1747851128519,0.98253206,667.31,666.14,0.37587612]
[1747851129418,0.98253206,667.53,666.14,0.37587612]
[1747851129615,1.01261043,667.52,666.14,0.37587612]
[1747851129816,1.01261043,667.51,666.14,0.37587612]
[1747851130016,0.98253206,667.53,666.14,0.37587612]
[1747851130422,1.01241966,667.52,666.14,0.37587612]
[1747851130621,1.01195136,667.51,666.14,0.37587612]
[1747851130820,0.98253206,667.53,666.14,0.37587612]
[1747851131015,1.01200682,667.52,666.47,0.37587612]
[1747851131220,1.01200682,667.51,666.47,0.37587612]
[1747851131419,1.01200682,667.5,666.47,0.37587612]
[1747851131616,1.01200682,667.49,666.47,0.37587612]
[1747851131814,1.01200682,667.48,666.47,0.37587612]
[1747851132015,1.01200682,667.47,666.47,0.37587612]
[1747851132221,1.01200682,667.46,666.47,0.37587612]
[1747851132523,0.98253206,667.46,666.47,0.37587612]
[1747851134424,0.98253206,667.45,666.38,0.37587612]
[1747851135624,0.98253206,667.64,666.38,0.37587612]
[1747851135923,1.01229164,667.63,666.38,0.37587612]
[1747851136124,1.01229164,667.62,666.38,0.37587612]
[1747851136323,1.01229164,667.61,666.38,0.37587612]
[1747851136622,1.01229164,667.6,666.38,0.37587612]
[1747851136825,1.01229164,667.59,666.31,0.37587612]
[1747851137018,1.01229164,667.58,666.31,0.37587612]
[1747851137220,1.01229164,667.57,666.31,0.37587612]
[1747851137419,1.01229164,667.56,666.31,0.37587612]
[1747851137626,1.01229164,667.55,666.31,0.37587612]
[1747851137930,1.01129525,667.54,666.31,0.37587612]
[1747851138125,1.99382731,667.53,666.31,0.37587612]
[1747851138326,1.01129525,667.52,666.31,0.37587612]
[1747851138528,1.01129525,667.51,666.31,0.37587612]
[1747851138728,0.98253206,667.53,666.31,0.37587612]
[1747851138927,1.01099218,667.52,666.31,0.37587612]
[1747851139227,0.98253206,667.53,666.31,0.37587612]
[1747851139228,1.01099218,667.51,666.31,0.37587612]
[1747851139424,1.01067571,667.5,666.31,0.37587612]
[1747851139628,0.98253206,667.53,666.31,0.37587612]
[1747851139827,1.01067789,667.52,666.31,0.37587612]
[1747851140030,0.98253206,667.5,666.05,0.37587612]
[1747851140731,0.98253206,667.49,666.05,0.37587612]
[1747851142123,0.98253206,667.84,666.02,0.37587612]
[1747851142324,1.44243856,667.83,666.02,0.37587612]
[1747851142527,1.0099858,667.82,666.02,0.37587612]
[1747851142728,1.0099858,667.81,666.02,0.37587612]
[1747851142927,1.0099858,667.8,666.02,0.37587612]
[1747851143128,1.0099858,667.79,666.02,0.37587612]
[1747851143328,1.0099858,667.78,666.02,0.37587612]
[1747851143530,1.0099858,667.77,666.02,0.37587612]
[1747851143827,1.0099858,667.76,666.02,0.37587612]
[1747851144025,1.0099858,667.75,666.02,0.37587612]
[1747851144225,1.0099858,667.74,666.02,0.37587612]
[1747851144427,1.0099858,667.73,666.02,0.37587612]
[1747851144623,1.0099858,667.72,666.02,0.37587612]
[1747851144826,1.0099858,667.71,666.02,0.37587612]
[1747851145127,1.00854278,667.7,666.24,0.37587612]
[1747851145427,0.98253206,667.73,666.24,0.37587612]
[1747851145428,1.00840943,667.69,666.24,0.37587612]
[1747851145625,1.00840943,667.68,666.24,0.37587612]
[1747851145825,1.00840943,667.67,666.24,0.37587612]
[1747851146026,0.98253206,667.73,666.24,0.37587612]
[1747851146327,1.99075033,667.72,666.24,0.37587612]
[1747851146625,1.00821827,667.71,666.24,0.37587612]
[1747851147128,0.98253206,667.72,666.24,0.37587612]
[1747851147723,1.09829765,667.93,666.19,0.37587612]
[1747851147925,1.00773331,667.92,666.19,0.37587612]
[1747851148122,1.00773331,667.91,666.19,0.37587612]
[1747851148322,1.00773331,667.9,666.19,0.37587612]
[1747851148522,1.00773331,667.89,666.19,0.37587612]
[1747851148725,1.99026537,667.88,666.19,0.37587612]
[1747851148927,1.00773331,667.87,666.19,0.37587612]
[1747851149127,1.00721025,667.86,666.19,0.37587612]
[1747851149327,0.98253206,667.88,666.19,0.37587612]
[1747851150434,0.98253206,667.92,666.31,0.37587612]
[1747851150624,1.0064912,667.91,666.31,0.37587612]
[1747851150930,1.00652132,667.9,666.31,0.37587612]
[1747851151126,1.00652132,667.89,666.31,0.37587612]
[1747851151434,1.00652132,667.88,666.31,0.37587612]
[1747851151630,1.00652132,667.87,666.31,0.37587612]
[1747851151830,1.00652132,667.86,666.31,0.37587612]
[1747851152028,1.00652132,667.85,666.31,0.37587612]
[1747851152229,1.00652132,667.84,666.31,0.37587612]